bitfinex/quotes_SOLUSD_20240615
["timestamp","ask_amount","ask_price","bid_price","bid_amount"]
[1718468057553,23.1739,145.44,145.32,6.19551655]
[1718468057768,5.56,145.39,145.34,5.56]
[1718468058002,23.1739,145.44,145.32,6.19551655]
[1718468058003,5.56,145.4,145.35,5.56]
[1718468058155,5.56,145.41,145.35,5.56]
[1718468058352,5.56,145.41,145.32,6.19551655]
[1718468058662,5.56,145.37,145.3,9.0545]
[1718468058849,5.56,145.37,145.31,5.56]
[1718468059054,5.56,145.37,145.3,9.0545]
[1718468059271,5.56,145.37,145.3,2.9369]
[1718468059478,5.56,145.37,145.31,5.56]
[1718468059879,16.6499,145.42,145.34,5.56]
[1718468060055,16.6499,145.42,145.35,5.56]
[1718468060262,5.56,145.41,145.35,5.56]
[1718468060465,5.56,145.4,145.3,102.9369]
[1718468060686,5.56,145.4,145.34,5.56]
[1718468060908,16.6499,145.42,145.32,22.24]
[1718468061186,16.6499,145.42,145.33,0.68]
[1718468061380,22.2099,145.42,145.33,0.68]
[1718468061991,16.6499,145.42,145.37,5.56]
[1718468063093,16.6499,145.42,145.36,0.17]
[1718468063289,16.6499,145.42,145.37,5.56]
[1718468063480,22.2099,145.42,145.36,5.56]
[1718468064159,5.56,145.39,145.31,6.1176]
[1718468064363,5.56,145.39,145.33,5.56]
[1718468064596,5.56,145.39,145.32,0.17]
[1718468064783,5.56,145.39,145.33,5.56]
[1718468065293,5.56,145.39,145.34,5.56]
[1718468066403,5.56,145.39,145.33,5.56]
[1718468067609,5.56,145.38,145.33,5.56]
[1718468070112,5.56,145.38,145.31,0.17]
[1718468070411,5.56,145.36,145.3,5.56]
[1718468071267,5.56,145.36,145.31,5.56]
[1718468072903,21.4899,145.37,145.31,5.56]
[1718468073101,27.0499,145.37,145.31,5.56]
[1718468073930,27.0499,145.37,145.25,139.92842404]
[1718468073931,5.56,145.34,145.25,2.9369]
[1718468074108,5.56,145.34,145.28,5.56]
[1718468074505,21.4899,145.37,145.25,125.1769]
[1718468074704,21.4899,145.37,145.31,5.56]
[1718468075226,27.0499,145.37,145.31,5.56]
[1718468075431,21.4899,145.37,145.31,5.56]
[1718468075602,27.0499,145.37,145.31,5.56]
[1718468076319,5.56,145.36,145.31,5.56]
[1718468076540,5.56,145.36,145.26,0.17]
[1718468076708,5.56,145.36,145.3,5.56]
[1718468076910,5.56,145.35,145.3,5.56]
[1718468077515,21.4899,145.37,145.3,5.56]
[1718468077715,21.4899,145.37,145.29,0.51]
[1718468077923,5.56,145.36,145.29,0.51]
[1718468078132,5.56,145.36,145.3,5.56]
[1718468078917,21.4899,145.37,145.3,5.56]
[1718468079122,5.56,145.36,145.3,5.56]
[1718468079317,5.56,145.35,145.3,5.56]
[1718468079741,5.56,145.35,145.29,5.56]
[1718468081562,5.56,145.35,145.28,0.17]
[1718468081854,5.56,145.36,145.3,5.56]
[1718468082224,21.4899,145.37,145.31,5.56]
[1718468082422,5.56,145.36,145.31,5.56]
[1718468083231,21.4899,145.37,145.31,5.56]
[1718468083535,27.0499,145.37,145.31,5.56]
[1718468084445,21.4899,145.37,145.31,5.56]
[1718468084747,27.0499,145.37,145.31,5.56]
[1718468086127,5.56,145.36,145.28,0.17]
[1718468086458,5.56,145.36,145.3,5.56]
[1718468086652,5.56,145.35,145.25,137.69355747]
[1718468086956,21.4899,145.37,145.31,5.56]
[1718468087255,27.0499,145.37,145.32,5.56]
[1718468088953,21.4899,145.37,145.32,5.56]
[1718468089336,6.5162,145.36,145.27,0.17]
[1718468089667,6.5162,145.36,145.22,266.7]
[1718468089668,15.2787,145.32,145.22,256.7]
[1718468089856,15.2787,145.32,145.23,5.56]
[1718468090159,15.2787,145.32,145.21,9.1744]
[1718468090344,15.2787,145.32,145.21,117.16747412]
[1718468090557,15.2787,145.32,145.23,100.0]
[1718468090784,15.2787,145.32,145.29,5.56]
[1718468091057,15.2787,145.36,145.31,5.56]
[1718468091256,15.2787,145.36,145.33,5.56]
[1718468091459,6.5162,145.4,145.35,5.56]
[1718468091643,21.7949,145.4,145.36,5.56]
[1718468092165,15.2787,145.4,145.36,5.56]
[1718468092662,21.7949,145.44,145.39,5.56]
[1718468092833,21.7949,145.44,145.35,0.68]
[1718468093034,15.2787,145.44,145.35,38.01]
[1718468093268,256.7,145.47,145.37,0.17]
[1718468093269,15.2787,145.47,145.37,0.17]
[1718468093469,15.2787,145.47,145.37,0.68]
[1718468093667,15.2787,145.47,145.39,0.17]
[1718468093845,15.2787,145.47,145.39,0.68]
[1718468094038,15.2787,145.47,145.39,0.34]
[1718468094377,15.2787,145.47,145.39,0.17]
[1718468094681,15.2787,145.47,145.39,0.34]
[1718468094842,15.2787,145.47,145.38,0.34]
[1718468095163,15.2787,145.47,145.37,0.34]
[1718468096346,15.2787,145.47,145.38,0.34]
[1718468097539,15.2787,145.47,145.37,0.34]
[1718468097737,102.7139,145.45,145.31,15.43534997]
[1718468097960,0.17,145.44,145.31,15.43534997]
[1718468098151,100.17,145.45,145.31,15.43534997]
[1718468099469,102.7138,145.45,145.32,0.68]
[1718468100164,100.17,145.45,145.32,0.68]
[1718468100366,100.17,145.45,145.31,15.43534997]
[1718468100573,0.51,145.46,144.88,1658.10601773]
[1718468100574,0.17,145.41,145.26,106.2375]
[1718468100744,2.5446,145.41,145.26,122.9275]
[1718468101076,22.3049,145.44,145.3,100.0]
[1718468101243,0.17,145.43,145.29,16.69]
[1718468101446,100.0,145.42,145.29,16.69]
[1718468101762,20.17,145.43,145.29,16.69]
[1718468102266,20.17,145.43,145.3,0.34]
[1718468102464,25.2585,145.43,145.3,0.34]
[1718468102665,2.8843,145.42,145.3,0.34]
[1718468103039,0.17,145.41,145.31,0.17]
[1718468103235,0.34,145.41,145.31,0.17]
[1718468103855,0.34,145.41,145.3,0.34]
[1718468104168,0.17,145.41,145.3,0.34]
[1718468104347,0.17,145.41,145.31,0.34]
[1718468104769,0.17,145.4,145.3,0.17]
[1718468105081,0.68,145.4,145.26,134.76106918]
[1718468105242,123.8676801,145.42,145.26,134.76106918]
[1718468105243,23.8676801,145.42,145.28,100.0]
[1718468105443,7.1776801,145.42,145.28,116.69]
[1718468105672,9.7219801,145.42,145.28,116.69]
[1718468105874,7.1776801,145.42,145.28,116.69]
[1718468106044,7.1776801,145.42,145.29,0.51]
[1718468106243,7.1776801,145.42,145.3,0.17]
[1718468106962,9.7219801,145.42,145.3,0.17]
[1718468107472,8.3136,145.41,145.3,0.17]
[1718468107674,15.8224,145.4,145.3,0.17]
[1718468108183,9.5338,145.39,145.26,6.2375]
[1718468108545,6.9889,145.39,145.26,6.2375]
[1718468108974,14.6234,145.39,145.26,6.2375]
[1718468109165,9.5337,145.39,145.26,6.2375]
[1718468109473,9.5337,145.39,145.22,14.02046918]
[1718468109474,15.8224,145.35,145.22,14.02046918]
[1718468109857,15.8224,145.35,145.22,134.66046918]
[1718468110046,15.8224,145.35,145.24,16.69]
[1718468110884,15.8224,145.35,145.22,6.1369]
[1718468111073,115.8224,145.35,145.22,6.1369]
[1718468111276,15.8224,145.35,145.22,126.7769]
[1718468111794,15.8224,145.35,145.24,16.69]
[1718468112475,15.8224,145.35,145.26,0.17]
[1718468114774,15.8224,145.35,145.24,16.69]
[1718468115490,15.8224,145.35,145.2,102.9369]
[1718468115687,6.3089,145.34,145.2,2.9369]
[1718468115873,6.3089,145.34,145.2,119.6269]
[1718468115874,6.4789,145.34,145.2,119.6269]
[1718468116263,6.3089,145.34,145.2,140.2669]
[1718468117105,6.3089,145.34,145.23,0.17]
[1718468117260,6.3089,145.34,145.23,0.68]
[1718468119144,0.17,145.33,145.2,2.9369]
[1718468119266,24.1402,145.33,145.19,5.61820308]
[1718468119466,16.5024,145.33,145.18,151.01580745]
[1718468119876,15.9924,145.33,145.2,100.0]
[1718468120081,15.8224,145.33,145.2,100.0]
[1718468120403,15.8224,145.33,145.18,151.01580745]
[1718468120573,18.3683,145.33,145.18,151.01580745]
[1718468120771,15.8224,145.33,145.18,151.01580745]
[1718468121094,18.3683,145.33,145.19,0.68]
[1718468121308,15.8224,145.33,145.19,0.68]
[1718468121685,18.3683,145.33,145.19,0.68]
[1718468122303,15.8224,145.33,145.19,0.68]
[1718468122812,15.8224,145.33,145.22,0.17]
[1718468122985,15.8224,145.33,145.25,0.17]
[1718468123309,15.8224,145.33,145.25,0.68]
[1718468124485,22.1313,145.36,145.25,117.37]
[1718468124686,22.1313,145.36,145.29,0.17]
[1718468125009,22.1313,145.36,145.29,0.68]
[1718468127806,15.8224,145.36,145.31,16.69]
[1718468128007,15.8224,145.36,145.32,0.68]
[1718468129523,6.655,145.39,145.32,0.68]
[1718468130033,15.959,145.4,145.34,16.86]
[1718468130202,6.655,145.43,145.36,0.17]
[1718468142860,6.655,145.43,145.36,16.86]
[1718468143148,6.655,145.43,145.38,0.17]
[1718468143654,6.655,145.43,145.37,45.51]
[1718468147446,6.655,145.43,145.32,20.00773774]
[1718468148727,0.17,145.42,145.32,8.6935414]
[1718468148938,0.34,145.42,145.31,16.69]
[1718468149865,6.655,145.43,145.31,16.69]
[1718468150431,6.655,145.43,145.32,0.34]
[1718468150740,6.655,145.43,145.34,16.86]
[1718468150947,6.655,145.43,145.36,0.17]
[1718468152172,15.959,145.44,145.38,0.17]
[1718468152332,15.959,145.44,145.38,0.68]
[1718468159172,6.6569,145.46,145.38,9.3735414]
[1718468164447,6.6569,145.46,145.38,17.75083774]
[1718468165175,6.6569,145.46,145.38,38.39083774]
[1718468165466,15.1631,145.47,145.4,16.86]
[1718468165647,15.1631,145.47,145.42,0.17]
[1718468167061,23.0585,145.5,145.42,0.17]
[1718468167462,23.0585,145.5,145.44,0.17]
[1718468167665,23.0585,145.5,145.44,0.68]
[1718468172184,16.4294,145.5,145.44,0.68]
[1718468174863,23.59772497,145.57,145.46,100.17]
[1718468175179,16.4294,145.57,145.48,100.17]
[1718468175361,16.4294,145.57,145.5,0.17]
[1718468175782,16.4294,145.57,145.5,16.86]
[1718468175974,16.4294,145.57,145.52,0.17]
[1718468183086,16.4294,145.57,145.48,17.07083774]
[1718468183394,16.4294,145.57,145.45,109.1421]
[1718468183707,16.4294,145.57,145.47,16.69]
[1718468184584,16.4294,145.57,145.48,0.68]
[1718468188910,21.9794,145.57,145.52,5.55]
[1718468189987,16.4294,145.57,145.52,5.55]
[1718468190901,21.9794,145.57,145.52,5.55]
[1718468191804,21.9794,145.57,145.48,0.68]
[1718468192125,21.9794,145.57,145.51,5.55]
[1718468193797,100.0,145.55,145.41,31.5794]
[1718468194122,5.55,145.51,145.41,31.5794]
[1718468194327,5.55,145.51,145.45,5.55]
[1718468195016,23.0505,145.54,145.41,48.2594]
[1718468195199,22.2637,145.52,145.41,48.2594]
[1718468196115,15.9978,145.52,145.43,0.17]
[1718468196296,15.9978,145.52,145.43,0.34]
[1718468196622,15.9978,145.57,145.45,120.81]
[1718468196794,15.9978,145.57,145.49,0.17]
[1718468196998,15.9978,145.57,145.49,0.68]
[1718468197421,6.2659,145.59,145.51,0.17]
[1718468197632,6.2659,145.59,145.51,0.68]
[1718468199395,16.27251,145.61,145.51,0.68]
[1718468199793,16.27251,145.61,145.53,0.17]
[1718468200024,16.27251,145.61,145.53,0.68]
[1718468200194,0.27471,145.61,145.55,0.17]
[1718468200396,0.27471,145.61,145.55,0.68]
[1718468210129,0.27471,145.61,145.53,6.6631]
[1718468211755,0.27471,145.61,145.55,0.17]
[1718468211960,0.27471,145.61,145.55,0.34]
[1718468212541,0.27471,145.61,145.56,0.34]
[1718468212759,0.27471,145.61,145.57,0.34]
[1718468212973,0.27471,145.61,145.58,0.34]
[1718468213143,0.27471,145.61,145.57,0.34]
[1718468216365,0.27471,145.61,145.58,0.34]
[1718468218070,0.27471,145.61,145.57,0.17]
[1718468218243,0.27471,145.61,145.55,3.378735]
[1718468221192,24.66431,145.61,145.55,3.378735]
[1718468221486,29.74631,145.61,145.55,3.378735]
[1718468221667,102.7112,145.6,145.55,3.378735]
[1718468222084,2.5418,145.57,145.55,3.378735]
[1718468222264,0.68,145.56,145.45,6.619]
[1718468222461,6.1739,145.54,145.44,2.9369]
[1718468222777,23.9699,145.54,145.42,6.3599]
[1718468222981,23.9699,145.54,145.4,6.3156]
[1718468222982,0.17,145.52,145.4,6.3156]
[1718468223856,7.7978,145.52,145.38,15.34781918]
[1718468224058,3.0527,145.51,145.38,15.34781918]
[1718468224290,0.17,145.5,145.38,15.34781918]
[1718468224582,7.16757352,145.53,145.4,100.0]
[1718468224787,7.16757352,145.53,145.39,25.66791918]
[1718468225087,7.16757352,145.53,145.4,100.0]
[1718468225464,7.16757352,145.53,145.41,0.34]
[1718468225690,7.16757352,145.53,145.43,0.17]
[1718468225873,7.16757352,145.53,145.43,0.34]
[1718468226196,7.16757352,145.53,145.43,0.17]
[1718468226377,7.16757352,145.53,145.43,0.34]
[1718468226583,7.16757352,145.53,145.44,0.51]
[1718468227291,6.3439,145.54,145.44,0.51]
[1718468227462,6.0039,145.54,145.44,0.51]
[1718468228686,2.5424,145.53,145.43,0.17]
[1718468228901,7.6272,145.53,145.43,0.51]
[1718468229214,2.5424,145.53,145.43,0.51]
[1718468229481,6.0039,145.54,145.43,0.51]
[1718468230072,21.2574,145.54,145.43,0.51]
[1718468230278,102.5424,145.53,145.43,0.51]
[1718468230481,100.0,145.53,145.43,0.51]
[1718468230778,0.17,145.52,145.38,6.3599]
[1718468230978,2.5431,145.49,145.38,6.3599]
[1718468231213,5.086,145.5,145.38,6.3599]
[1718468231490,15.3138,145.49,145.38,6.3599]
[1718468231664,0.17,145.48,145.38,6.3599]
[1718468232079,28.0294,145.49,145.38,6.3599]
[1718468232262,9.1836,145.47,145.34,15.55140807]
[1718468232459,21.9011,145.47,145.34,15.55140807]
[1718468232694,106.64,145.47,145.34,6.6074]
[1718468232887,0.17,145.46,145.34,6.6074]
[1718468233266,6.64,145.47,145.34,127.2474]
[1718468234289,6.64,145.47,145.35,16.68]
[1718468234497,6.64,145.47,145.36,0.34]
[1718468234692,6.64,145.47,145.36,0.68]
[1718468235270,0.17,145.46,145.34,6.6074]
[1718468235468,0.34,145.46,145.34,6.6074]
[1718468235775,6.64,145.47,145.34,106.6074]
[1718468235977,6.64,145.47,145.34,127.2474]
[1718468236588,6.64,145.47,145.35,0.68]
[1718468237576,2.5436,145.46,145.35,0.68]
[1718468238118,29.5317,145.47,145.35,0.68]
[1718468238119,21.9013,145.47,145.35,0.68]
[1718468238282,2.5436,145.46,145.35,0.68]
[1718468238482,7.6309,145.46,145.35,0.68]
[1718468238795,2.5436,145.46,145.35,0.68]
[1718468239004,14.2707,145.47,145.35,0.68]
[1718468239204,6.64,145.47,145.35,0.68]
[1718468239390,13.80700945,145.47,145.35,0.68]
[1718468239589,21.43740945,145.47,145.35,0.68]
[1718468239773,25.7771,145.46,145.35,0.68]
[1718468239974,2.7138,145.46,145.35,0.68]
[1718468240271,2.5439,145.45,145.35,0.68]
[1718468240474,7.6321,145.44,145.35,0.51]
[1718468240683,17.858,145.43,145.3,32.23140807]
[1718468240879,15.3138,145.43,145.3,32.23140807]
[1718468241090,2.5443,145.42,145.3,32.23140807]
[1718468241290,14.4436,145.41,145.3,6.6074]
[1718468241611,6.64,145.41,145.3,6.6074]
[1718468242202,6.64,145.41,145.31,100.0]
[1718468242407,6.64,145.41,145.31,116.68]
[1718468242611,6.64,145.41,145.32,0.68]
[1718468244840,15.3138,145.43,145.32,0.68]
[1718468246403,30.5788,145.43,145.32,0.68]
[1718468246742,40.7563,145.43,145.32,0.68]
[1718468246908,2.5443,145.42,145.32,0.68]
[1718468247246,40.7563,145.43,145.32,0.68]
[1718468247531,15.3138,145.43,145.32,0.68]
[1718468248022,15.3138,145.43,145.32,117.36]
[1718468248716,15.3138,145.43,145.32,138.0]
[1718468252741,15.3138,145.43,145.32,117.36]
[1718468252947,15.3138,145.43,145.32,17.36]
[1718468254532,17.8579,145.43,145.32,17.36]
[1718468254747,15.3138,145.43,145.32,17.36]
[1718468254957,15.3138,145.43,145.3,135.73597473]
[1718468254958,15.3138,145.43,145.3,15.09597473]
[1718468255257,22.9464,145.43,145.3,6.6074]
[1718468255451,17.858,145.43,145.3,6.6074]
[1718468255852,15.3138,145.43,145.3,6.6074]
[1718468256162,22.8997,145.42,145.31,0.17]
[1718468256349,25.4442,145.42,145.31,0.68]
[1718468256546,2.5445,145.41,145.31,0.68]
[1718468256746,2.5445,145.41,145.3,6.6074]
[1718468256747,2.5447,145.4,145.3,6.6074]
[1718468256952,2.5446,145.41,145.3,6.6074]
[1718468257139,15.3138,145.43,145.3,6.6074]
[1718468257335,22.9463,145.43,145.3,6.6074]
[1718468257642,15.3138,145.43,145.3,6.6074]
[1718468257859,30.5789,145.43,145.3,6.6074]
[1718468258065,30.5789,145.43,145.31,0.51]
[1718468258066,15.3138,145.43,145.31,0.51]
[1718468258240,15.3138,145.43,145.32,0.17]
[1718468259739,22.9465,145.43,145.32,0.17]
[1718468259946,15.3138,145.43,145.32,0.17]
[1718468260161,38.2116,145.43,145.32,0.17]
[1718468260345,17.858,145.43,145.32,0.17]
[1718468260547,22.9463,145.43,145.31,0.51]
[1718468260961,17.858,145.43,145.31,0.51]
[1718468261561,2.5443,145.42,145.31,0.51]
[1718468261745,7.633,145.42,145.32,0.17]
[1718468261946,2.5443,145.42,145.32,0.17]
[1718468262141,15.2661,145.42,145.3,6.6074]
[1718468262468,25.4905,145.43,145.3,6.6074]
[1718468262469,2.5448,145.4,145.3,6.6074]
[1718468262641,5.0894,145.4,145.3,6.6074]
[1718468262847,7.6342,145.4,145.3,6.6074]
[1718468263047,2.5448,145.4,145.3,6.6074]
[1718468263263,7.6342,145.4,145.3,6.6074]
[1718468263477,2.5448,145.4,145.3,6.6074]
[1718468263659,7.16506127,145.4,145.3,6.6074]
[1718468264462,2.545,145.39,145.3,6.6074]
[1718468264667,32.61296127,145.4,145.3,6.6074]
[1718468264843,2.545,145.38,145.3,6.6074]
[1718468265039,15.4394,145.39,145.3,6.6074]
[1718468265344,7.8046,145.39,145.3,6.6074]
[1718468265761,2.7149,145.39,145.3,6.6074]
[1718468266339,7.16506127,145.4,145.3,6.6074]
[1718468266868,9.70976127,145.4,145.3,6.6074]
[1718468267039,7.16506127,145.4,145.3,6.6074]
[1718468267543,9.70976127,145.4,145.3,6.6074]
[1718468267766,2.5449,145.39,145.3,6.6074]
[1718468267963,7.16506127,145.4,145.3,6.6074]
[1718468268677,5.0898,145.39,145.3,6.6074]
[1718468268859,2.8849,145.39,145.3,6.6074]
[1718468269058,7.9746,145.39,145.3,6.6074]
[1718468269469,15.6092,145.39,145.3,6.6074]
[1718468269641,7.6352,145.38,145.3,6.6074]
[1718468271876,2.5451,145.38,145.3,6.6074]
[1718468272757,2.7152,145.37,145.3,6.6074]
[1718468273074,7.6368,145.35,145.27,6.0306]
[1718468273265,2.5457,145.34,145.27,6.0306]
[1718468273474,15.2737,145.35,145.27,6.0306]
[1718468273675,7.637,145.35,145.27,6.0306]
[1718468273873,100.51,145.36,145.26,6.3156]
[1718468273874,12.7296,145.33,145.26,6.3156]
[1718468274053,25.66810935,145.34,145.26,6.3156]
[1718468274258,0.17,145.33,145.26,6.3156]
[1718468274570,2.7159,145.33,145.26,6.3156]
[1718468274755,0.17,145.33,145.26,6.3156]
[1718468274949,0.17,145.33,145.23,6.0306]
[1718468275174,2.7159,145.33,145.23,6.0306]
[1718468275702,7.8078,145.33,145.23,6.0306]
[1718468275858,15.4456,145.33,145.23,6.0306]
[1718468276549,7.8078,145.33,145.23,6.0306]
[1718468278052,2.8861,145.32,145.23,6.0306]
[1718468278471,2.716,145.33,145.23,6.0306]
[1718468278782,25.6312,145.32,145.23,6.0306]
[1718468278956,25.6313,145.32,145.23,6.0306]
[1718468279157,2.7162,145.32,145.23,6.0306]
[1718468279370,7.8083,145.32,145.23,6.0306]
[1718468279604,2.5464,145.31,145.23,6.0306]
[1718468280123,8.1494,145.3,145.23,6.0306]
[1718468280314,0.51,145.3,145.23,6.0306]
[1718468280680,3.0564,145.3,145.23,6.0306]
[1718468281621,0.17,145.32,145.23,6.0306]
[1718468281928,7.16750935,145.34,145.24,0.17]
[1718468282208,5.5760098,145.36,145.24,0.68]
[1718468282408,100.0,145.4,145.27,0.17]
[1718468282612,2.5449,145.39,145.27,0.68]
[1718468283313,130.06958577,145.4,145.27,0.68]
[1718468283314,7.16658577,145.4,145.27,0.68]
[1718468283498,7.16658577,145.4,145.29,0.17]
[1718468283688,15.1359,145.41,145.29,0.68]
[1718468283894,2.5448,145.4,145.29,0.68]
[1718468284106,100.0,145.39,145.28,6.0306]
[1718468284324,5.0899,145.39,145.28,6.0306]
[1718468284619,10.1807,145.38,145.28,6.0306]
[1718468284781,10.1821,145.36,145.28,6.0306]
[1718468284986,5.0909,145.36,145.28,6.0306]
[1718468285223,3.0553,145.37,145.28,6.0306]
[1718468285429,15.7814,145.37,145.28,6.0306]
[1718468285789,7.6373,145.34,145.28,6.0306]
[1718468286115,6.1507,145.39,145.28,6.0306]
[1718468286116,17.8121,145.41,145.28,6.0306]
[1718468286411,15.1359,145.42,145.28,6.0306]
[1718468286412,22.9023,145.4,145.28,6.0306]
[1718468286591,2.5447,145.4,145.28,6.0306]
[1718468286988,40.5801,145.42,145.29,0.17]
[1718468287205,2.5445,145.41,145.29,0.68]
[1718468287417,15.1359,145.42,145.29,0.68]
[1718468287616,25.4421,145.43,145.29,0.68]
[1718468287789,15.2662,145.42,145.31,0.17]
[1718468288116,2.5445,145.42,145.31,0.68]
[1718468288326,7.6335,145.41,145.31,0.68]
[1718468288818,2.5445,145.41,145.31,0.68]
[1718468289190,23.5829,145.4,145.3,6.3156]
[1718468289516,0.68,145.4,145.3,6.3156]
[1718468289819,0.17,145.41,145.31,0.34]
[1718468290113,2.7146,145.41,145.31,0.17]
[1718468290414,7.8036,145.41,145.31,0.34]
[1718468290798,15.4372,145.41,145.31,0.34]
[1718468291304,7.8047,145.39,145.3,6.3156]
[1718468291505,2.545,145.38,145.3,6.3156]
[1718468291694,0.17,145.39,145.3,6.3156]
[1718468292021,0.68,145.39,145.3,6.3156]
[1718468293310,3.2248,145.39,145.3,6.3156]
[1718468293520,15.9491,145.39,145.3,6.3156]
[1718468293725,8.3145,145.39,145.3,6.3156]
[1718468293893,15.9492,145.39,145.3,6.3156]
[1718468294099,8.3146,145.39,145.3,6.3156]
[1718468294401,7.6351,145.38,145.3,6.3156]
[1718468294606,33.29257104,145.39,145.3,6.3156]
[1718468294791,2.545,145.38,145.3,6.3156]
[1718468294991,30.74757104,145.39,145.3,6.3156]
[1718468294992,0.17,145.37,145.3,6.3156]
[1718468295217,25.7931,145.37,145.3,6.3156]
[1718468295525,2.5454,145.36,145.3,6.3156]
[1718468295721,2.7155,145.35,145.3,6.3156]
[1718468295893,25.4581,145.34,145.28,6.0306]
[1718468296096,7.8074,145.34,145.28,6.0306]
[1718468296623,2.7158,145.34,145.28,6.0306]
[1718468297408,0.17,145.34,145.28,6.0306]
[1718468297624,0.51,145.34,145.28,6.0306]
[1718468299634,8.1472,145.34,145.28,6.0306]
[1718468299846,15.7844,145.34,145.28,6.0306]
[1718468300227,7.8078,145.33,145.26,6.3156]
[1718468300550,2.5462,145.31,145.26,6.3156]
[1718468300753,25.6315,145.32,145.26,6.3156]
[1718468301125,2.5463,145.31,145.26,6.3156]
[1718468301324,2.7162,145.32,145.26,6.3156]
[1718468301946,7.8084,145.32,145.26,6.3156]
[1718468302762,15.4467,145.32,145.26,6.3156]
[1718468302965,0.17,145.31,145.26,6.3156]
[1718468303260,2.7162,145.31,145.26,6.3156]
[1718468303461,0.17,145.31,145.26,6.3156]
[1718468303972,2.5459,145.33,145.26,6.3156]
[1718468304557,5.0927,145.31,145.24,6.5167]
[1718468304767,15.2791,145.3,145.24,6.5167]
[1718468304939,7.6398,145.29,145.24,6.5167]
[1718468305145,0.17,145.28,145.24,6.5167]
[1718468305347,0.17,145.29,145.24,6.5167]
[1718468305652,0.68,145.29,145.24,6.5167]
[1718468306160,0.51,145.29,145.24,6.5167]
[1718468306358,0.17,145.3,145.24,6.5167]
[1718468306669,0.68,145.3,145.24,6.5167]
[1718468306848,3.2264,145.3,145.24,6.5167]
[1718468307449,7.639,145.31,145.24,6.5167]
[1718468307664,7.6389,145.31,145.24,6.5167]
[1718468307966,7.6388,145.31,145.24,6.5167]
[1718468308155,2.7165,145.3,145.24,6.5167]
[1718468310567,2.7164,145.3,145.24,6.5167]
[1718468310746,0.17,145.3,145.24,6.5167]
[1718468311058,0.17,145.31,145.24,6.5167]
[1718468311260,0.51,145.32,145.24,6.5167]
[1718468311434,0.17,145.32,145.24,6.5167]
[1718468312455,2.7161,145.32,145.24,6.5167]
[1718468313667,0.17,145.32,145.24,6.5167]
[1718468313966,2.7161,145.32,145.24,6.5167]
[1718468314354,19.2258,145.34,145.24,6.5167]
[1718468314759,34.501,145.34,145.24,6.5167]
[1718468314942,25.15435316,145.35,145.24,6.5167]
[1718468315269,7.8074,145.34,145.24,6.5167]
[1718468315458,2.5458,145.34,145.25,0.51]
[1718468316057,7.16465316,145.35,145.26,6.3156]
[1718468317294,7.16465316,145.35,145.27,0.17]